fUSD/lending_fUSD_20260612
["ID","MTS","AMOUNT","RATE_DAILY","PERIOD"]
[424884385,1781232647000,-150.0,0.00032523,30]
[424884389,1781232647000,-1000.0,0.00032607,7]
[424884390,1781232647000,-150.0,0.0003272,30]
[424884388,1781232647000,-150.0,0.00032589,30]
[424884391,1781232647000,-1000.0,0.00032751,7]
[424884379,1781232647000,-150.0,0.00032438,30]
[424884384,1781232647000,-150.0,0.00032523,30]
[424884383,1781232647000,-320.0,0.00032516,24]
[424884382,1781232647000,-505.0,0.000325,14]
[424884378,1781232647000,-150.0,0.00032438,30]
[424884380,1781232647000,-150.0,0.00032457,30]
[424884381,1781232647000,-1000.0,0.00032463,7]
[424884376,1781232647000,-1000.0,0.00032319,7]
[424884377,1781232647000,-150.0,0.00032326,30]
[424884372,1781232647000,-151.0,0.00032232,7]
[424884369,1781232647000,-262.928167,0.00032232,7]
[424884396,1781232647000,-1211.8698377,0.00032836,7]
[424884387,1781232647000,-12383.29528979,0.00032578,28]
[424884398,1781232647000,-320.0,0.00032875,26]
[424884409,1781232647000,-151.0,0.00032877,7]
[424884401,1781232647000,-209.432558,0.00032877,7]
[424884424,1781232647000,-210.54966235,0.00033,120]
[424884423,1781232647000,-208.76406884,0.00033,120]
[424884422,1781232647000,-174.14953345,0.00033,120]
[424884419,1781232647000,-150.0,0.00032945,30]
[424884421,1781232647000,-150.0,0.00032983,30]
[424884417,1781232647000,-200.0,0.000329,12]
[424884418,1781232647000,-200.0,0.000329,12]
[424884416,1781232647000,-1000.0,0.00032896,7]
[424884414,1781232647000,-700.714142,0.00032877,120]
[424884420,1781232647000,-150.0,0.00032945,30]
[424884415,1781232647000,-261.7,0.00032877,30]
[424884413,1781232647000,-512.0,0.00032877,120]
[424884411,1781232647000,-151.0,0.00032877,7]
[424884412,1781232647000,-1571.0,0.00032877,30]
[424884408,1781232647000,-151.0,0.00032877,7]
[424884410,1781232647000,-151.0,0.00032877,7]
[424884407,1781232647000,-168.793865,0.00032877,7]
[424884404,1781232647000,-274.760788,0.00032877,7]
[424884403,1781232647000,-191.923009,0.00032877,7]
[424884406,1781232647000,-151.0,0.00032877,7]
[424884402,1781232647000,-151.0,0.00032877,7]
[424884405,1781232647000,-176.476368,0.00032877,7]
[424884400,1781232647000,-286.967806,0.00032877,7]
[424884397,1781232647000,-150.0,0.00032851,30]
[424884373,1781232647000,-151.0,0.00032232,7]
[424884370,1781232647000,-262.928167,0.00032232,7]
[424884367,1781232647000,-338.209091,0.00032232,7]
[424884340,1781232647000,-200.0,0.00032162,30]
[424884338,1781232647000,-244.0,0.00032162,30]
[424884343,1781232647000,-189.0,0.00032163,30]
[424884345,1781232647000,-1000.0,0.00032175,7]
[424884341,1781232647000,-174.0,0.00032162,30]
[424884344,1781232647000,-227.0,0.00032163,30]
[424884342,1781232647000,-173.0,0.00032162,30]
[424884339,1781232647000,-589.0,0.00032162,30]
[424884337,1781232647000,-225.0,0.00032162,30]
[424884335,1781232647000,-206.0,0.00032162,30]
[424884334,1781232647000,-157.0,0.00032162,30]
[424884329,1781232647000,-205.21010824,0.00032,120]
[424884328,1781232647000,-1000.0,0.00032,120]
[424884331,1781232647000,-261.61,0.00032055,5]
[424884330,1781232647000,-1000.0,0.0003203,7]
[424884332,1781232647000,-150.0,0.00032063,30]
[424884333,1781232647000,-320.0,0.00032147,23]
[424884347,1781232647000,-150.0,0.00032194,30]
[424884336,1781232647000,-167.0,0.00032162,30]
[424884365,1781232647000,-338.209091,0.00032232,7]
[424884352,1781232647000,-154.60502456,0.00032229,7]
[424884366,1781232647000,-338.209091,0.00032232,7]
[424884371,1781232647000,-262.928167,0.00032232,7]
[424884368,1781232647000,-262.928167,0.00032232,7]
[424884363,1781232647000,-151.0,0.00032232,7]
[424884375,1781232647000,-1390.42631711,0.00032232,2]
[424884374,1781232647000,-151.0,0.00032232,7]
[424884364,1781232647000,-338.209091,0.00032232,7]
[424884360,1781232647000,-154.78667,0.00032232,7]
[424884357,1781232647000,-100000.0,0.00032232,90]
[424884350,1781232647000,-153.72,0.000322,7]
[424884359,1781232647000,-155.560253,0.00032232,7]
[424884351,1781232647000,-666.4,0.0003221,5]
[424884362,1781232647000,-160.096635,0.00032232,7]
[424884354,1781232647000,-500.0,0.00032231,2]
[424884361,1781232647000,-157.122678,0.00032232,7]
[424884358,1781232647000,-100000.0,0.00032232,60]
[424884353,1781232647000,-500.0,0.00032231,2]
[424884356,1781232647000,-100000.0,0.00032232,120]
[424884355,1781232647000,-531.05929864,0.00032231,2]
[424884455,1781232648000,-200.0,0.00033162,30]
[424884447,1781232648000,-1571.0,0.00033151,30]
[424884448,1781232648000,-1000.0,0.00033161,120]
[424884449,1781232648000,-157.0,0.00033162,30]
[424884451,1781232648000,-167.0,0.00033162,30]
[424884452,1781232648000,-225.0,0.00033162,30]
[424884454,1781232648000,-589.0,0.00033162,30]
[424884453,1781232648000,-244.0,0.00033162,30]
[424884456,1781232648000,-174.0,0.00033162,30]
[424884460,1781232648000,-585.615198,0.00033177,120]
[424884463,1781232648000,-500.0,0.0003321,2]
[424884461,1781232648000,-1000.0,0.00033184,7]
[424884446,1781232648000,-286.06946144,0.00033135,2]
[424884464,1781232648000,-500.0,0.0003321,2]
[424884457,1781232648000,-173.0,0.00033162,30]
[424884462,1781232648000,-346.99871046,0.00033201,2]
[424884458,1781232648000,-189.0,0.00033163,30]
[424884466,1781232648000,-500.0,0.0003321,2]
[424884459,1781232648000,-227.0,0.00033163,30]
[424884445,1781232648000,-432.57904068,0.00033123,120]
[424884443,1781232648000,-150.0,0.00033114,30]
[424884444,1781232648000,-150.0,0.00033114,30]
[424884425,1781232648000,-168.91346881,0.00033,120]
[424884428,1781232648000,-189.9214738,0.00033,120]
[424884429,1781232648000,-188.6840366,0.00033,120]
[424884427,1781232648000,-813.84590609,0.00033,120]
[424884430,1781232648000,-161.2155328,0.00033,120]
[424884426,1781232648000,-189.39016739,0.00033,120]
[424884437,1781232648000,-205.21010824,0.00033,120]
[424884432,1781232648000,-185.65194979,0.00033,120]
[424884440,1781232648000,-16755.0372,0.00033078,28]
[424884436,1781232648000,-404.36,0.00033,7]
[424884433,1781232648000,-192.78067843,0.00033,120]
[424884434,1781232648000,-160.0,0.00033,120]
[424884435,1781232648000,-500.0,0.00033,120]
[424884438,1781232648000,-400.64,0.00033014,5]
[424884441,1781232648000,-10171.48163874,0.00033111,2]
[424884439,1781232648000,-1000.0,0.0003304,7]
[424884465,1781232648000,-500.0,0.0003321,2]
[424884442,1781232648000,-150.0,0.00033114,30]
[424884431,1781232648000,-162.88044551,0.00033,120]
[424884467,1781232648000,-500.0,0.0003321,2]
[424884450,1781232648000,-206.0,0.00033162,30]
[424884469,1781232648000,-500.0,0.0003321,2]
[424884491,1781232648000,-500.0,0.0003321,2]
[424884495,1781232648000,-500.0,0.0003321,2]
[424884496,1781232648000,-500.0,0.0003321,2]
[424884498,1781232648000,-500.0,0.0003321,2]
[424884497,1781232648000,-500.0,0.0003321,2]
[424884494,1781232648000,-500.0,0.0003321,2]
[424884493,1781232648000,-500.0,0.0003321,2]
[424884499,1781232648000,-500.0,0.0003321,2]
[424884500,1781232648000,-500.0,0.0003321,2]
[424884502,1781232648000,-500.0,0.0003321,2]
[424884507,1781232648000,-500.0,0.0003321,2]
[424884508,1781232648000,-500.0,0.0003321,2]
[424884501,1781232648000,-500.0,0.0003321,2]
[424884503,1781232648000,-500.0,0.0003321,2]
[424884505,1781232648000,-500.0,0.0003321,2]
[424884504,1781232648000,-500.0,0.0003321,2]
[424884506,1781232648000,-500.0,0.0003321,2]
[424884509,1781232648000,-500.0,0.0003321,2]
[424884468,1781232648000,-500.0,0.0003321,2]
[424884492,1781232648000,-500.0,0.0003321,2]
[424884490,1781232648000,-500.0,0.0003321,2]
[424884510,1781232648000,-500.0,0.0003321,2]
[424884489,1781232648000,-500.0,0.0003321,2]
[424884484,1781232648000,-500.0,0.0003321,2]
[424884470,1781232648000,-500.0,0.0003321,2]
[424884472,1781232648000,-500.0,0.0003321,2]
[424884474,1781232648000,-500.0,0.0003321,2]
[424884473,1781232648000,-500.0,0.0003321,2]
[424884481,1781232648000,-500.0,0.0003321,2]
[424884478,1781232648000,-500.0,0.0003321,2]
[424884476,1781232648000,-500.0,0.0003321,2]
[424884475,1781232648000,-500.0,0.0003321,2]
[424884471,1781232648000,-500.0,0.0003321,2]
[424884480,1781232648000,-500.0,0.0003321,2]
[424884479,1781232648000,-500.0,0.0003321,2]
[424884483,1781232648000,-500.0,0.0003321,2]
[424884482,1781232648000,-500.0,0.0003321,2]
[424884488,1781232648000,-500.0,0.0003321,2]
[424884477,1781232648000,-500.0,0.0003321,2]
[424884486,1781232648000,-500.0,0.0003321,2]
[424884487,1781232648000,-500.0,0.0003321,2]
[424884485,1781232648000,-500.0,0.0003321,2]
[424884540,1781232649000,-338.209091,0.00033211,7]
[424884538,1781232649000,-338.209091,0.00033211,7]
[424884531,1781232649000,-236387.90497479,0.00033211,2]
[424884535,1781232649000,-151.0,0.00033211,7]
[424884541,1781232649000,-262.928167,0.00033211,7]
[424884537,1781232649000,-338.209091,0.00033211,7]
[424884539,1781232649000,-338.209091,0.00033211,7]
[424884545,1781232649000,-151.0,0.00033211,7]
[424884544,1781232649000,-262.928167,0.00033211,7]
[424884548,1781232649000,-151.0,0.00033211,7]
[424884542,1781232649000,-262.928167,0.00033211,7]
[424884546,1781232649000,-151.0,0.00033211,7]
[424884543,1781232649000,-262.928167,0.00033211,7]
[424884550,1781232649000,-320.0,0.00033224,28]
[424884560,1781232649000,-150.0,0.00033302,2]
[424884553,1781232649000,-3556.0,0.00033294,2]
[424884536,1781232649000,-161.383952,0.00033211,7]
[424884555,1781232649000,-382.0,0.00033294,2]
[424884547,1781232649000,-151.0,0.00033211,7]
[424884534,1781232649000,-166.841507,0.00033211,7]
[424884523,1781232649000,-500.0,0.0003321,2]
[424884530,1781232649000,-500.0,0.0003321,2]
[424884551,1781232649000,-150.0,0.00033246,30]
[424884513,1781232649000,-500.0,0.0003321,2]
[424884515,1781232649000,-500.0,0.0003321,2]
[424884512,1781232649000,-500.0,0.0003321,2]
[424884511,1781232649000,-500.0,0.0003321,2]
[424884516,1781232649000,-500.0,0.0003321,2]
[424884514,1781232649000,-500.0,0.0003321,2]
[424884518,1781232649000,-500.0,0.0003321,2]
[424884517,1781232649000,-500.0,0.0003321,2]
[424884522,1781232649000,-500.0,0.0003321,2]
[424884519,1781232649000,-500.0,0.0003321,2]
[424884521,1781232649000,-500.0,0.0003321,2]
[424884526,1781232649000,-500.0,0.0003321,2]
[424884520,1781232649000,-500.0,0.0003321,2]
[424884525,1781232649000,-500.0,0.0003321,2]
[424884524,1781232649000,-500.0,0.0003321,2]
[424884528,1781232649000,-500.0,0.0003321,2]
[424884527,1781232649000,-500.0,0.0003321,2]
[424884529,1781232649000,-500.0,0.0003321,2]
[424884533,1781232649000,-153.039076,0.00033211,7]
[424884559,1781232649000,-6076.0,0.00033294,2]
[424884532,1781232649000,-1596293.8719065,0.00033211,2]
[424884554,1781232649000,-1358.0,0.00033294,2]
[424884579,1781232649000,-150.0,0.0003364,30]
[424884580,1781232649000,-22331.25726412,0.00033681,2]
[424884581,1781232649000,-1571.0,0.00033699,30]
[424884587,1781232649000,-153.72,0.000338,30]
[424884582,1781232649000,-150.0,0.00033705,30]
[424884583,1781232649000,-150.0,0.00033705,30]
[424884584,1781232649000,-1000.0,0.00033761,7]
[424884585,1781232649000,-150.0,0.00033771,30]
[424884586,1781232649000,-630.130941,0.00033777,120]
[424884589,1781232649000,-320.0,0.00033892,32]
[424884588,1781232649000,-231.52351058,0.00033869,4]
[424884590,1781232649000,-174.14953345,0.000339,120]
[424884593,1781232649000,-813.84590609,0.000339,120]
[424884591,1781232649000,-210.54966235,0.000339,120]
[424884592,1781232649000,-168.91346881,0.000339,120]
[424884595,1781232649000,-188.6840366,0.000339,120]
[424884596,1781232649000,-161.2155328,0.000339,120]
[424884597,1781232649000,-162.88044551,0.000339,120]
[424884552,1781232649000,-1652.40882065,0.0003325,2]
[424884578,1781232649000,-1000.0,0.00033617,7]
[424884575,1781232649000,-150.0,0.00033508,30]
[424884594,1781232649000,-189.9214738,0.000339,120]
[424884572,1781232649000,-150.334588,0.00033459,2]
[424884598,1781232649000,-205.21010824,0.000339,120]
[424884557,1781232649000,-1227.0,0.00033294,2]
[424884558,1781232649000,-419.0,0.00033294,2]
[424884556,1781232649000,-1275.0,0.00033294,2]
[424884562,1781232649000,-505.0,0.00033333,14]
[424884561,1781232649000,-1000.0,0.00033328,7]
[424884568,1781232649000,-218.22,0.00033405,7]
[424884565,1781232649000,-558.31250894,0.00033401,2]
[424884563,1781232649000,-500.0,0.00033356,60]
[424884549,1781232649000,-151.0,0.00033211,7]
[424884569,1781232649000,-1571.0,0.00033425,30]
[424884570,1781232649000,-150.0,0.00033452,30]
[424884566,1781232649000,-1759.74592773,0.00033401,2]
[424884573,1781232649000,-1000.0,0.00033472,7]
[424884576,1781232649000,-320.0,0.00033563,30]
[424884574,1781232649000,-578.956243,0.00033477,120]
[424884571,1781232649000,-150.0,0.00033452,30]
[424884564,1781232649000,-150.0,0.00033377,30]
[424884567,1781232649000,-1401.20101214,0.00033401,2]
[424884577,1781232649000,-1015.88,0.000336,30]
[424884621,1781232650000,-244.0,0.00034162,30]
[424884623,1781232650000,-200.0,0.00034162,30]
[424884620,1781232650000,-225.0,0.00034162,30]
[424884624,1781232650000,-174.0,0.00034162,30]
[424884625,1781232650000,-173.0,0.00034162,30]
[424884626,1781232650000,-189.0,0.00034163,30]
[424884622,1781232650000,-589.0,0.00034162,30]
[424884632,1781232650000,-320.0,0.00034213,35]
[424884628,1781232650000,-150.0,0.00034165,30]
[424884629,1781232650000,-505.0,0.00034167,15]
[424884631,1781232650000,-1000.0,0.00034193,7]
[424884630,1781232650000,-666.4,0.00034182,7]
[424884634,1781232650000,-150.0,0.00034241,120]
[424884635,1781232650000,-261.7,0.00034246,30]
[424884618,1781232650000,-206.0,0.00034162,30]
[424884637,1781232650000,-512.0,0.00034247,120]
[424884627,1781232650000,-227.0,0.00034163,30]
[424884616,1781232650000,-150.0,0.00034091,120]
[424884609,1781232650000,-177.57473726,0.00034,60]
[424884619,1781232650000,-167.0,0.00034162,30]
[424884636,1781232650000,-1571.0,0.00034247,30]
[424884599,1781232650000,-150.0,0.00033903,30]
[424884600,1781232650000,-1000.0,0.00033905,7]
[424884602,1781232650000,-150.0,0.00033954,120]
[424884601,1781232650000,-4714.58834976,0.0003395,2]
[424884605,1781232650000,-1571.0,0.00033973,30]
[424884604,1781232650000,-150.0,0.00033959,30]
[424884603,1781232650000,-150.0,0.00033959,30]
[424884611,1781232650000,-8000.0,0.00034,30]
[424884610,1781232650000,-1000.0,0.00034,120]
[424884612,1781232650000,-150.0,0.00034034,30]
[424884606,1781232650000,-177.57473726,0.00034,30]
[424884608,1781232650000,-177.57473726,0.00034,60]
[424884607,1781232650000,-177.57473726,0.00034,30]
[424884614,1781232650000,-502.441283,0.00034078,120]
[424884613,1781232650000,-1000.0,0.00034049,7]
[424884615,1781232650000,-150.0,0.00034087,120]
[424884617,1781232650000,-157.0,0.00034162,30]
[424884641,1781232650000,-150.0,0.00034297,30]
[424884633,1781232650000,-224.06,0.00034235,7]
[424884639,1781232650000,-150.0,0.00034297,30]
[424884660,1781232650000,-971.51653064,0.00034475,15]
[424884662,1781232650000,-540.3,0.00034482,7]
[424884664,1781232650000,-223.29404067,0.0003449,10]
[424884666,1781232650000,-310.69680921,0.00034492,2]
[424884667,1781232650000,-300.0,0.00034492,2]
[424884665,1781232650000,-397.0,0.0003449,2]
[424884677,1781232650000,-300.0,0.00034492,2]
[424884669,1781232650000,-596.26628023,0.00034492,2]
[424884668,1781232650000,-1345.51142854,0.00034492,2]
[424884673,1781232650000,-583.23661699,0.00034492,2]
[424884670,1781232650000,-300.0,0.00034492,2]
[424884671,1781232650000,-300.0,0.00034492,2]
[424884674,1781232650000,-453.49716794,0.00034492,2]
[424884676,1781232650000,-445.3117499,0.00034492,2]
[424884675,1781232650000,-300.0,0.00034492,2]
[424884678,1781232650000,-564.24476332,0.00034492,2]
[424884642,1781232650000,-150.0,0.00034333,120]
[424884663,1781232650000,-25000.0,0.0003449,10]
[424884661,1781232650000,-1000.0,0.00034482,30]
[424884672,1781232650000,-513.07662106,0.00034492,2]
[424884656,1781232650000,-5800.0,0.0003445,2]
[424884640,1781232650000,-150.0,0.00034297,30]
[424884658,1781232650000,-150.0,0.00034466,120]
[424884638,1781232650000,-3084.61,0.00034288,120]
[424884644,1781232650000,-5800.0,0.00034365,2]
[424884647,1781232650000,-5800.0,0.00034382,2]
[424884646,1781232650000,-455.455645,0.00034378,120]
[424884645,1781232650000,-5800.0,0.00034373,2]
[424884648,1781232650000,-5800.0,0.0003439,2]
[424884643,1781232650000,-1000.0,0.00034338,7]
[424884649,1781232650000,-5800.0,0.00034399,2]
[424884650,1781232650000,-5800.0,0.00034407,2]
[424884653,1781232650000,-150.0,0.00034428,30]
[424884652,1781232650000,-5800.0,0.00034424,2]
[424884657,1781232650000,-5800.0,0.00034458,2]
[424884654,1781232650000,-5800.0,0.00034433,2]
[424884659,1781232650000,-150.0,0.00034466,120]
[424884651,1781232650000,-5800.0,0.00034415,2]
[424884655,1781232650000,-5800.0,0.00034441,2]
[424884717,1781232651000,-300.0,0.00034492,2]
[424884716,1781232651000,-453.49716794,0.00034492,2]
[424884714,1781232651000,-513.07662106,0.00034492,2]
[424884721,1781232651000,-300.0,0.00034492,2]
[424884712,1781232651000,-300.0,0.00034492,2]
[424884720,1781232651000,-300.0,0.00034492,2]
[424884723,1781232651000,-445.3117499,0.00034492,2]
[424884713,1781232651000,-300.0,0.00034492,2]
[424884709,1781232651000,-1345.51142854,0.00034492,2]
[424884718,1781232651000,-300.0,0.00034492,2]
[424884711,1781232651000,-596.26628023,0.00034492,2]
[424884722,1781232651000,-300.0,0.00034492,2]
[424884715,1781232651000,-583.23661699,0.00034492,2]
[424884729,1781232651000,-363.9890073,0.00034495,60]
[424884724,1781232651000,-300.0,0.00034492,2]
[424884727,1781232651000,-300.0,0.00034492,2]
[424884726,1781232651000,-580.59286311,0.00034492,2]
[424884735,1781232651000,-320.0,0.00034524,36]
[424884728,1781232651000,-1099.13823899,0.00034492,2]
[424884730,1781232651000,-332.6641827,0.00034495,60]
[424884725,1781232651000,-300.0,0.00034492,2]
[424884731,1781232651000,-373.3527346,0.00034495,60]
[424884734,1781232651000,-1794.47,0.000345,120]
[424884733,1781232651000,-161.8706584,0.00034495,60]
[424884732,1781232651000,-227.8717723,0.00034495,60]
[424884708,1781232651000,-300.0,0.00034492,2]
[424884719,1781232651000,-300.0,0.00034492,2]
[424884710,1781232651000,-300.0,0.00034492,2]
[424884687,1781232651000,-300.0,0.00034492,2]
[424884702,1781232651000,-300.0,0.00034492,2]
[424884737,1781232651000,-1647.2068,0.00034526,2]
[424884684,1781232651000,-300.0,0.00034492,2]
[424884683,1781232651000,-300.0,0.00034492,2]
[424884681,1781232651000,-1099.13823899,0.00034492,2]
[424884686,1781232651000,-300.0,0.00034492,2]
[424884679,1781232651000,-300.0,0.00034492,2]
[424884682,1781232651000,-300.0,0.00034492,2]
[424884689,1781232651000,-300.0,0.00034492,2]
[424884685,1781232651000,-494.42258205,0.00034492,2]
[424884688,1781232651000,-606.7951111,0.00034492,2]
[424884680,1781232651000,-300.0,0.00034492,2]
[424884691,1781232651000,-598.02481287,0.00034492,2]
[424884692,1781232651000,-728.87673558,0.00034492,2]
[424884693,1781232651000,-302.858555,0.00034492,2]
[424884690,1781232651000,-535.88360783,0.00034492,2]
[424884694,1781232651000,-300.64497725,0.00034492,2]
[424884696,1781232651000,-300.69293633,0.00034492,2]
[424884695,1781232651000,-301.63238954,0.00034492,2]
[424884699,1781232651000,-300.0,0.00034492,2]
[424884697,1781232651000,-300.0,0.00034492,2]
[424884698,1781232651000,-300.0,0.00034492,2]
[424884700,1781232651000,-345.16203924,0.00034492,2]
[424884701,1781232651000,-528.74490013,0.00034492,2]
[424884704,1781232651000,-952.66146575,0.00034492,2]
[424884703,1781232651000,-867.71381198,0.00034492,2]
[424884705,1781232651000,-1804.18128636,0.00034492,2]
[424884706,1781232651000,-300.0,0.00034492,2]
[424884707,1781232651000,-310.69680921,0.00034492,2]
[424884747,1781232651000,-315.65,0.00034658,2]
[424884763,1781232651000,-491.0,0.00034752,2]
[424884739,1781232651000,-596.52,0.00034544,60]
[424884792,1781232651000,-500.0,0.0003497,2]
[424884764,1781232651000,-491.0,0.00034752,2]
[424884776,1781232651000,-1000.0,0.0003486,30]
[424884773,1781232651000,-157.0,0.00034815,3]
[424884775,1781232651000,-320.0,0.00034827,37]
[424884784,1781232651000,-200.0,0.000349,12]
[424884774,1781232651000,-150.0,0.00034822,120]
[424884782,1781232651000,-286.0,0.000349,120]
[424884779,1781232651000,-150.0,0.00034888,120]
[424884778,1781232651000,-150.0,0.00034888,120]
[424884777,1781232651000,-491.0,0.00034878,2]
[424884781,1781232651000,-1060.54665507,0.00034899,2]
[424884767,1781232651000,-6511.7318,0.00034773,2]
[424884783,1781232651000,-1500.0,0.000349,7]
[424884787,1781232651000,-491.0,0.00034914,2]
[424884786,1781232651000,-332.53545594,0.0003491,2]
[424884796,1781232651000,-500.0,0.0003497,2]
[424884794,1781232651000,-500.0,0.0003497,2]
[424884790,1781232651000,-500.0,0.00034965,2]
[424884793,1781232651000,-700.0,0.0003497,2]
[424884788,1781232651000,-150.0,0.00034954,120]
[424884789,1781232651000,-1000.0,0.00034954,30]
[424884797,1781232651000,-1102.6680439,0.0003497,2]
[424884795,1781232651000,-700.0,0.0003497,2]
[424884791,1781232651000,-150.0,0.00034967,2]
[424884736,1781232651000,-6511.7318,0.00034526,2]
[424884780,1781232651000,-6511.7318,0.00034896,2]
[424884765,1781232651000,-491.0,0.00034761,2]
[424884785,1781232651000,-200.0,0.000349,12]
[424884760,1781232651000,-200.0,0.000347,12]
[424884771,1781232651000,-200.0,0.000348,12]
[424884738,1781232651000,-19795.16,0.00034544,60]
[424884746,1781232651000,-6511.7318,0.0003465,2]
[424884740,1781232651000,-5453.41,0.00034544,60]
[424884742,1781232651000,-150.0,0.0003456,120]
[424884741,1781232651000,-1548.33,0.00034544,60]
[424884744,1781232651000,-169.22,0.0003459,30]
[424884743,1781232651000,-1000.0,0.00034576,30]
[424884748,1781232651000,-315.65,0.00034658,2]
[424884750,1781232651000,-315.65,0.00034658,2]
[424884751,1781232651000,-315.65,0.00034658,2]
[424884753,1781232651000,-315.65,0.00034658,2]
[424884752,1781232651000,-315.65,0.00034658,2]
[424884759,1781232651000,-153.72,0.000347,30]
[424884745,1781232651000,-2084.3224775,0.00034593,2]
[424884757,1781232651000,-1000.0,0.00034671,30]
[424884772,1781232651000,-150.0,0.00034801,3]
[424884768,1781232651000,-200.0,0.00034777,3]
[424884770,1781232651000,-200.0,0.000348,12]
[424884761,1781232651000,-200.0,0.000347,12]
[424884766,1781232651000,-1000.0,0.00034765,30]
[424884769,1781232651000,-1500.0,0.00034795,2]
[424884762,1781232651000,-168.0,0.00034706,11]
[424884754,1781232651000,-315.65,0.00034658,2]
[424884758,1781232651000,-150.0,0.00034691,120]
[424884749,1781232651000,-315.65,0.00034658,2]
[424884755,1781232651000,-315.65,0.00034658,2]
[424884756,1781232651000,-315.61354154,0.00034658,2]
[424884837,1781232652000,-151.0,0.00034999,30]
[424884839,1781232652000,-152.38392526,0.00034999,30]
[424884841,1781232652000,-7407.141672,0.00034999,30]
[424884845,1781232652000,-154.19676567,0.00034999,30]
[424884843,1781232652000,-3022.36235525,0.00034999,30]
[424884847,1781232652000,-156.587,0.00034999,30]
[424884829,1781232652000,-151.0,0.00034999,30]
[424884838,1781232652000,-160.34467154,0.00034999,30]
[424884831,1781232652000,-151.0,0.00034999,30]
[424884833,1781232652000,-154.19676567,0.00034999,30]
[424884832,1781232652000,-3000.0,0.00034999,30]
[424884836,1781232652000,-156.587,0.00034999,30]
[424884848,1781232652000,-160.0,0.00034999,30]
[424884849,1781232652000,-151.0,0.00034999,30]
[424884860,1781232652000,-518.5,0.00034999,30]
[424884850,1781232652000,-162.380719,0.00034999,30]
[424884840,1781232652000,-151.0,0.00034999,30]
[424884842,1781232652000,-157.51838458,0.00034999,30]
[424884846,1781232652000,-151.0,0.00034999,30]
[424884851,1781232652000,-500.0,0.00034999,30]
[424884853,1781232652000,-160.34467154,0.00034999,30]
[424884852,1781232652000,-200.0,0.00034999,30]
[424884857,1781232652000,-7681.20591386,0.00034999,30]
[424884855,1781232652000,-10000.0,0.00034999,30]
[424884862,1781232652000,-154.19676567,0.00034999,30]
[424884854,1781232652000,-1000.0,0.00034999,30]
[424884858,1781232652000,-6000.0,0.00034999,30]
[424884827,1781232652000,-151.0,0.00034999,30]
[424884844,1781232652000,-500.0,0.00034999,30]
[424884834,1781232652000,-151.0,0.00034999,30]
[424884810,1781232652000,-151.0,0.00034999,30]
[424884828,1781232652000,-160.34467154,0.00034999,30]
[424884798,1781232652000,-501.05595173,0.0003497,2]
[424884801,1781232652000,-150.0,0.00034973,120]
[424884800,1781232652000,-150.0,0.00034973,120]
[424884863,1781232652000,-156.587,0.00034999,30]
[424884808,1781232652000,-151.0,0.00034999,30]
[424884804,1781232652000,-151.0,0.00034999,30]
[424884799,1781232652000,-491.0,0.00034972,2]